fUSD/lending_fUSD_20250630
["ID","MTS","AMOUNT","RATE_DAILY","PERIOD"]
[368717790,1751320232705,-150.0,0.00013783,2]
[368717791,1751320232714,-150.0,0.00013784,2]
[368717792,1751320232725,-150.0,0.00013791,2]
[368717793,1751320232735,-150.0,0.00013792,2]
[368717794,1751320232745,-150.0,0.00013802,2]
[368717795,1751320232755,-150.0,0.00013804,2]
[368717796,1751320232765,-150.0,0.00013807,2]
[368717797,1751320232775,-150.0,0.00013811,2]
[368717798,1751320232785,-150.0,0.00013818,2]
[368717799,1751320232795,-150.0,0.00013832,2]
[368717800,1751320232806,-150.0,0.00013836,2]
[368717801,1751320232816,-150.0,0.00013845,2]
[368717802,1751320232827,-150.0,0.00013846,2]
[368717803,1751320232837,-150.0,0.00013852,2]
[368717804,1751320232849,-150.0,0.00013856,2]
[368717805,1751320232860,-150.0,0.0001386,2]
[368717806,1751320232869,-150.0,0.0001386,2]
[368717807,1751320232879,-150.0,0.0001386,2]
[368717808,1751320232888,-150.0,0.00013863,2]
[368717809,1751320232897,-150.0,0.00013863,2]
[368717810,1751320232908,-150.0,0.00013865,2]
[368717811,1751320232921,-150.0,0.00013866,2]
[368717812,1751320232931,-150.0,0.00013869,2]
[368717813,1751320232940,-948.0,0.00013877,2]
[368717814,1751320232950,-3341.0,0.00013877,2]
[368717815,1751320232960,-639.0,0.00013877,2]
[368717816,1751320232970,-804.0,0.00013877,2]
[368717817,1751320232980,-146.90097852,0.00013877,2]
[368717818,1751320232992,-498.0539241,0.00013877,2]
[368717819,1751320233057,-1110.33088506,0.00013877,2]
[368717820,1751320233070,-253.71421232,0.00013877,2]
[368717821,1751320233079,-1163.0,0.00013877,2]
[368717822,1751320233091,-560.0,0.00013877,2]
[368717823,1751320233100,-1154.77968185,0.00013877,2]
[368717824,1751320233141,-126.22031815,0.00013877,2]
[368717825,1751320233151,-1679.0,0.00013877,2]
[368717826,1751320233160,-592.0,0.00013877,2]
[368717827,1751320233170,-930.0,0.00013877,2]
[368717828,1751320233180,-4105.0,0.00013877,2]
[368717829,1751320233189,-857.0,0.00013877,2]
[368717830,1751320233199,-7149.0,0.00013877,2]
[368717831,1751320233210,-150.0,0.00013881,2]
[368717832,1751320233219,-150.0,0.00013885,2]
[368717833,1751320233229,-437.247,0.00013886,2]
[368717834,1751320233238,-150.0,0.00013886,2]
[368717835,1751320233248,-200.0,0.00013888,2]
[368717836,1751320233258,-150.0,0.0001389,2]
[368717837,1751320233269,-150.0,0.00013892,2]
[368717838,1751320233280,-150.0,0.00013896,2]
[368717839,1751320233289,-150.0,0.00013897,2]
[368717840,1751320233299,-150.0,0.00013899,2]
[368717841,1751320233308,-2500.0,0.000139,2]
[368717842,1751320233318,-183.00789611,0.000139,2]
[368717843,1751320233329,-157.83978035,0.000139,2]
[368717844,1751320233340,-669.7332072,0.000139,2]
[368717845,1751320233349,-2966.9424342,0.000139,2]
[368717846,1751320233359,-150.0,0.00013912,2]
[368717847,1751320233369,-150.0,0.00013913,2]
[368717848,1751320233379,-150.0,0.00013913,2]
[368717849,1751320233388,-339.56214306,0.00013918,2]
[368717850,1751320233398,-593.96505387,0.00013923,2]
[368717851,1751320233407,-1000.0,0.00013924,2]
[368717852,1751320233418,-1000.0,0.00013925,2]
[368717853,1751320233427,-150.0,0.00013925,2]
[368717854,1751320233437,-150.0,0.00013929,2]
[368717855,1751320233447,-150.0,0.00013932,2]
[368717856,1751320233458,-150.0,0.00013936,2]
[368717857,1751320233468,-1000.0,0.00013941,2]
[368717858,1751320233478,-150.0,0.00013943,2]
[368717859,1751320233488,-150.0,0.00013945,2]
[368717860,1751320233499,-222.14,0.00013948,2]
[368717861,1751320233509,-150.0,0.00013952,2]
[368717862,1751320233519,-150.0,0.00013956,2]
[368717863,1751320233529,-150.0,0.00013961,2]
[368717864,1751320233538,-222.14,0.0001397,2]
[368717865,1751320233549,-500.0,0.00013973,2]
[368717866,1751320233559,-534.53964863,0.00013973,2]
[368717867,1751320233570,-500.0,0.00013973,2]
[368717868,1751320233581,-500.0,0.00013973,2]
[368717869,1751320233590,-500.0,0.00013973,2]
[368717870,1751320233600,-500.0,0.00013973,2]
[368717871,1751320233610,-150.0,0.00013975,2]
[368717872,1751320233620,-150.0,0.00013977,2]
[368717873,1751320233629,-150.0,0.00013978,2]
[368717874,1751320233640,-150.0,0.00013979,2]
[368717875,1751320233650,-671.0,0.00013984,2]
[368717876,1751320233660,-150.0,0.00013986,2]
[368717877,1751320233670,-150.0,0.00013987,2]
[368717878,1751320233680,-150.0,0.00013987,2]
[368717879,1751320233689,-150.0,0.00013992,2]
[368717880,1751320233699,-150.0,0.00013993,2]
[368717881,1751320233709,-12936.1768725,0.00013999,2]
[368717882,1751320233722,-764.3998411,0.00013999,2]
[368717883,1751320233734,-1652.609832,0.00013999,2]
[368717884,1751320233747,-1068.61377754,0.00013999,2]
[368717887,1751320237909,-353.16046139,0.00013699,2]
[368717888,1751320237922,-131.71953861,0.00013699,2]
[368717889,1751320237933,-886.0,0.00013877,2]
[368717890,1751320237943,-219.45693667,0.00013999,2]
[368717891,1751320237956,-620.4344832,0.00013999,2]
[368717892,1751320238125,-3141.47679209,0.00013999,2]
[368718077,1751320240363,-953.181633,0.00013999,2]
[368718099,1751320243074,-156.0,0.00013877,2]
[368718100,1751320243086,-18011.00210553,0.00013999,2]
[368718103,1751320243213,-1890.38815857,0.00013999,2]
[368718104,1751320243224,-500.0,0.00013999,2]
[368718105,1751320243234,-500.0,0.00013999,2]
[368718106,1751320243244,-479.0,0.00013999,2]
[368718107,1751320243253,-4272.0,0.00013999,2]
[368718108,1751320243265,-484.0,0.00013999,2]
[368718109,1751320243275,-150.0,0.00013999,2]
[368718110,1751320243284,-150.0,0.00013999,2]
[368718111,1751320243294,-150.0,0.00013999,2]
[368718112,1751320243304,-420.0,0.00013999,2]
[368718113,1751320243314,-150.0,0.00013999,2]
[368718114,1751320243324,-200.0,0.00013999,2]
[368718115,1751320243334,-500.0,0.00013999,2]
[368718116,1751320243343,-285.2621651,0.00013999,2]
[368718117,1751320243353,-500.0,0.00013999,2]
[368718118,1751320243363,-150.0,0.00013999,2]
[368718119,1751320243372,-996.0,0.00013999,2]
[368718120,1751320243382,-150.0,0.00013999,2]
[368718121,1751320243391,-150.0,0.00013999,2]
[368718122,1751320243402,-150.0,0.00013999,2]
[368718123,1751320243413,-500.0,0.00013999,2]
[368718124,1751320243423,-500.0,0.00013999,2]
[368718125,1751320243433,-1396.0,0.00013999,2]
[368718126,1751320243444,-500.0,0.00013999,2]
[368718127,1751320243455,-150.0,0.00013999,2]
[368718129,1751320243464,-500.0,0.00013999,2]
[368718130,1751320243474,-500.0,0.00013999,2]
[368718131,1751320243483,-3228.0,0.00013999,2]
[368718132,1751320243493,-500.0,0.00013999,2]
[368718133,1751320243502,-500.0,0.00013999,2]
[368718134,1751320243512,-150.0,0.00013999,2]
[368718135,1751320243522,-240735.12413909,0.00014,2]
[368718136,1751320243531,-62385.50491826,0.00014,2]
[368718137,1751320245911,-490.0,0.00014,2]
[368718146,1751320532852,256.19,0.00012953,2]
[368718147,1751320555309,213.51,0.00012963,2]
[368718149,1751320727186,422.077766,0.00012555,2]
[368718150,1751320750399,1000.0,0.00012959,2]
[368718151,1751320758033,422.077774,0.00013111,2]
[368718152,1751320798847,534.0,0.00012336,2]
[368718153,1751320836762,422.077766,0.000131,2]
[368718154,1751320946969,164.77,0.0001271,2]
[368718165,1751321150824,351.266103,0.00013111,2]
[368718166,1751321175561,2542.61635703,0.00013,2]
[368718167,1751321175589,1268.38364297,0.00013,2]
[368718224,1751321432075,-351.266101,0.00013111,2]
[368718225,1751321432085,-150.0,0.0001315,2]
[368718226,1751321432099,-250.0,0.00013174,2]
[368718227,1751321432109,-300.0,0.00013174,2]
[368718228,1751321432118,-151.0,0.00013195,2]
[368718229,1751321432129,-150.0,0.00013281,2]
[368718230,1751321432138,-185.4998125,0.00013281,2]
[368718231,1751321432150,-114.5001875,0.00013281,2]
[368718232,1751321432159,-959.3726125,0.00013281,2]
[368718233,1751321432172,-240.6273875,0.00013281,2]
[368718234,1751321432182,-300.0,0.00013282,2]
[368718235,1751321432192,-207.4,0.00013282,2]
[368718236,1751321432202,-500.0,0.00013282,2]
[368718237,1751321432212,-500.0,0.00013282,2]
[368718238,1751321432222,-500.0,0.00013282,2]
[368718239,1751321432231,-500.0,0.00013282,2]
[368718240,1751321432241,-500.0,0.00013282,2]
[368718241,1751321432251,-500.0,0.00013282,2]
[368718259,1751321432605,-500.0,0.00013282,2]
[368718261,1751321432635,-500.0,0.00013282,2]
[368718262,1751321432644,-500.0,0.00013282,2]
[368718263,1751321432654,-500.0,0.00013282,2]
[368718264,1751321432664,-500.0,0.00013282,2]
[368718265,1751321432674,-500.0,0.00013282,2]
[368718266,1751321432683,-500.0,0.00013282,2]
[368718267,1751321432693,-500.0,0.00013282,2]
[368718268,1751321432702,-500.0,0.00013282,2]
[368718269,1751321432712,-206.38989568,0.00013282,2]
[368718270,1751321432721,-173.94299992,0.00013282,2]
[368718271,1751321432731,-150.0,0.0001337,2]
[368718272,1751321432740,-150.0,0.00013393,2]
[368718273,1751321432749,-169.93,0.00013397,2]
[368718274,1751321432759,-247.49302009,0.00013465,2]
[368718275,1751321432768,-150.0,0.0001348,2]
[368718276,1751321432778,-150.0,0.00013485,2]
[368718277,1751321432787,-150.0,0.00013497,2]
[368718278,1751321432797,-150.0,0.00013497,2]
[368718279,1751321432807,-150.0,0.00013505,2]
[368718280,1751321432817,-150.0,0.00013512,2]
[368718281,1751321432827,-150.0,0.00013523,2]
[368718282,1751321432837,-150.0,0.00013533,2]
[368718283,1751321432847,-150.0,0.00013537,2]
[368718284,1751321432856,-150.0,0.00013549,2]
[368718285,1751321432866,-150.0,0.00013557,2]
[368718286,1751321432875,-150.0,0.00013559,2]
[368718287,1751321432885,-150.0,0.00013564,2]
[368718288,1751321432894,-150.0,0.0001357,2]
[368718289,1751321432904,-150.0,0.00013578,2]
[368718290,1751321432913,-150.0,0.00013582,2]
[368718291,1751321432922,-150.0,0.00013593,2]
[368718292,1751321432931,-150.0,0.00013613,2]
[368718293,1751321432941,-150.0,0.00013624,2]
[368718294,1751321432950,-150.0,0.00013624,2]
[368718295,1751321432959,-150.0,0.00013647,2]
[368718296,1751321432968,-150.0,0.00013648,2]
[368718297,1751321432977,-150.0,0.00013674,2]
[368718298,1751321432987,-150.0,0.00013676,2]
[368718299,1751321432996,-150.0,0.00013696,2]
[368718300,1751321433005,-460.63,0.00013699,2]
[368718301,1751321433014,-150.0,0.00013702,2]
[368718302,1751321433024,-150.0,0.00013722,2]
[368718303,1751321433034,-150.0,0.00013737,2]
[368718304,1751321433043,-639.0,0.00013799,2]
[368718305,1751321433053,-804.0,0.00013799,2]
[368718306,1751321433062,-2009.0,0.00013799,2]
[368718307,1751321433071,-825.7,0.00013799,2]
[368718308,1751321433081,-592.0,0.00013799,2]
[368718309,1751321433091,-1679.0,0.00013799,2]
[368718310,1751321433100,-560.0,0.00013799,2]
[368718311,1751321433109,-930.0,0.00013799,2]
[368718312,1751321433119,-1163.0,0.00013799,2]
[368718313,1751321433129,-380.60905201,0.000138,2]
[368718314,1751321433141,-1565.67122521,0.000138,2]
[368718315,1751321433154,-5202.71972278,0.000138,2]
[368718316,1751321433165,-886.0,0.000138,2]
[368718317,1751321433175,-4105.0,0.000138,2]
[368718318,1751321433184,-948.0,0.00013877,2]
[368718319,1751321433194,-3341.0,0.00013877,2]
[368718320,1751321433204,-184.66302008,0.00013899,2]
[368718321,1751321433215,-184.66302,0.00013899,2]
[368718322,1751321433225,-184.66302,0.00013899,2]
[368718323,1751321433235,-184.66302,0.00013899,2]
[368718324,1751321433246,-184.66302,0.00013899,2]
[368718325,1751321433256,-184.66302,0.000139,2]
[368718326,1751321433266,-184.66302,0.000139,2]
[368718327,1751321433278,-184.66302,0.000139,2]
[368718328,1751321433288,-184.66302,0.000139,2]
[368718329,1751321433298,-187.40180642,0.000139,2]
[368718330,1751321433308,-349.798,0.000139,2]
[368718331,1751321433318,-184.66302,0.000139,2]
[368718332,1751321433329,-254.21111898,0.000139,2]
[368718333,1751321433340,-169.93,0.0001395,2]
[368718334,1751321433349,-500.0,0.00013973,2]
[368718335,1751321433359,-500.0,0.00013973,2]
[368718336,1751321433369,-343.6806739,0.00013973,2]
[368718337,1751321433429,-156.3193261,0.00013973,2]
[368718338,1751321433439,-500.0,0.00013973,2]
[368718339,1751321433449,-500.0,0.00013973,2]
[368718340,1751321433460,-3130.14706212,0.00013999,2]
[368718341,1751321433476,-628.01727258,0.00013999,2]
[368718342,1751321433508,-356.44813137,0.00013999,2]
[368718345,1751321438378,-156.0,0.000138,2]
[368718346,1751321438391,-835.8297818,0.00013876,2]
[368718347,1751321438400,-425.98456766,0.00013999,2]
[368718348,1751321438411,-1043.05825553,0.00013999,2]
[368718349,1751321438424,-1690.02600441,0.00013999,2]
[368718350,1751321438436,-2554.43646796,0.00013999,2]
[368718351,1751321438449,-346.15441633,0.00013999,2]
[368718353,1751321438460,-1223.56365491,0.00013999,2]
[368718561,1751321440612,-536.21,0.00013999,2]
[368718574,1751321440733,-533.07123385,0.00013999,2]
[368718577,1751321440744,-4021.64639901,0.00013999,2]
[368718718,1751321446337,-18651.18079006,0.00013999,2]
[368718719,1751321446426,-996.83999998,0.00013999,2]
[368718723,1751321446568,-687.44111898,0.00013999,2]
[368718730,1751321663748,277.09,0.00012962,2]
[368718734,1751321823782,2504.76,0.00012942,2]
[368718735,1751321844259,1000.0,0.00012929,2]
[368718736,1751322007145,267.0,0.0002739,120]
[368718737,1751322007835,336.11,0.0002739,120]
[368718738,1751322007929,1860.0,0.0002739,120]
[368718739,1751322009291,1991.0,0.0002739,120]
[368718740,1751322013517,1877.0,0.0002739,120]
[368718741,1751322014288,1782.0,0.0002739,120]
[368718742,1751322015094,1328.0,0.0002739,120]
[368718743,1751322028444,482.0,0.0002739,120]
[368718744,1751322029468,156.0,0.0002739,120]
[368718745,1751322030195,272.0,0.0002739,120]
[368718746,1751322047321,168.1318342,0.00027397,120]
[368718747,1751322050725,201.10649177,0.00027397,120]
[368718748,1751322070237,1028.0,0.0002739,120]
[368718749,1751322071358,794.0,0.0002739,120]
[368718750,1751322073869,1593.0,0.0002739,120]
[368718751,1751322074235,656.40128456,0.0002739,120]
[368718752,1751322084480,246.0,0.0002739,120]
[368718753,1751322085167,464.0,0.0002739,120]
[368718754,1751322086716,150.5,0.0002609,120]
[368718755,1751322087082,219.0,0.0002609,120]
[368718756,1751322088398,150.5,0.0002608,120]
[368718757,1751322088850,150.5,0.0002607,120]
[368718758,1751322090951,219.0,0.0002608,120]
[368718759,1751322091450,219.0,0.0002607,120]
[368718760,1751322132017,642.0,0.0002739,120]
[368718761,1751322134760,169.09965246,0.0002739,120]
[368718762,1751322194310,205.0,0.0002739,120]
[368718763,1751322194388,164.77,0.00012857,2]
[368718764,1751322202342,846.442922,0.00025999,120]
[368718765,1751322203795,557.99208,0.00025999,120]
[368718767,1751322206467,150.5,0.0002609,120]
[368718768,1751322206662,150.5,0.0002609,120]
[368718769,1751322206862,150.5,0.0002608,120]
[368718770,1751322206918,150.5,0.0002609,120]
[368718772,1751322207123,150.5,0.0002608,120]
[368718773,1751322207430,150.5,0.0002608,120]
[368718774,1751322207478,150.5,0.0002607,120]
[368718776,1751322207614,500.0,0.00026531,120]
[368718777,1751322207790,150.5,0.0002607,120]
[368718778,1751322208095,150.5,0.0002607,120]
[368718779,1751322246434,861.84912744,0.0002739,120]
[368718780,1751322263598,600.0,0.00018106,120]
[368718781,1751322265542,600.0,0.00018106,120]
[368718782,1751322266143,600.0,0.00018106,120]
[368718783,1751322266733,533.34,0.00018106,120]
[368718784,1751322269202,600.0,0.00018106,120]
[368718785,1751322269781,600.0,0.00018106,120]
[368718786,1751322270992,600.0,0.00018106,120]
[368718787,1751322271344,533.34,0.00018106,120]
[368718788,1751322272669,600.0,0.00018106,120]
[368718789,1751322273695,600.0,0.00018106,120]
[368718790,1751322274344,600.0,0.00018106,120]
[368718791,1751322274847,533.34,0.00018106,120]
[368718792,1751322276662,600.0,0.00018106,120]
[368718793,1751322277328,600.0,0.00018106,120]
[368718794,1751322277704,600.0,0.00018106,120]
[368718795,1751322278295,533.34,0.00018106,120]
[368718796,1751322282935,600.0,0.00018106,120]
[368718797,1751322283945,600.0,0.00018106,120]
[368718798,1751322284598,600.0,0.00018106,120]
[368718799,1751322285283,533.34,0.00018106,120]
[368718800,1751322287377,600.0,0.00018106,120]
[368718801,1751322287829,600.0,0.00018106,120]
[368718802,1751322288192,600.0,0.00018106,120]
[368718803,1751322289059,533.34,0.00018106,120]
[368718804,1751322289728,600.0,0.00018106,120]
[368718805,1751322290922,600.0,0.00018106,120]
[368718806,1751322291567,600.0,0.00018106,120]
[368718807,1751322292245,533.34,0.00018106,120]
[368718808,1751322293977,600.0,0.00018106,120]
[368718809,1751322294532,600.0,0.00018106,120]
[368718810,1751322295300,600.0,0.00018106,120]
[368718811,1751322295724,533.34,0.00018106,120]
[368718812,1751322297963,600.0,0.00018106,120]
[368718813,1751322298537,600.0,0.00018106,120]
[368718814,1751322299487,600.0,0.00018106,120]
[368718815,1751322300119,533.34,0.00018106,120]
[368718817,1751322301243,600.0,0.00018106,120]
[368718818,1751322301977,600.0,0.00018106,120]
[368718819,1751322302335,600.0,0.00018106,120]
[368718820,1751322303044,533.34,0.00018106,120]
[368718821,1751322305905,600.0,0.00018106,120]
[368718822,1751322307007,600.0,0.00018106,120]
[368718823,1751322307234,230.98,0.0002739,120]
[368718824,1751322308208,600.0,0.00018106,120]
[368718825,1751322308751,533.34,0.00018106,120]
[368718826,1751322312435,600.0,0.00018106,120]
[368718827,1751322313424,600.0,0.00018106,120]
[368718828,1751322313715,600.0,0.00018106,120]
[368718829,1751322314048,533.34,0.00018106,120]
[368718830,1751322317254,600.0,0.00018106,120]
[368718831,1751322320573,600.0,0.00018106,120]
[368718832,1751322328129,600.0,0.00018106,120]
[368718833,1751322328299,211.6,0.0002609,120]
[368718834,1751322329722,533.34,0.00018106,120]
[368718835,1751322330946,600.0,0.0002,120]
[368718836,1751322331587,600.0,0.0002,120]
[368718837,1751322332078,600.0,0.0002,120]
[368718838,1751322332734,533.34,0.0002,120]
[368718839,1751322336728,600.0,0.0002,120]
[368718840,1751322337202,600.0,0.0002,120]
[368718841,1751322337868,600.0,0.0002,120]
[368718842,1751322338487,533.34,0.0002,120]
[368718843,1751322340562,600.0,0.0002,120]
[368718844,1751322341031,600.0,0.0002,120]
[368718845,1751322341935,600.0,0.0002,120]
[368718846,1751322342897,533.34,0.0002,120]
[368718847,1751322345536,600.0,0.0002,120]
[368718848,1751322345972,600.0,0.0002,120]
[368718849,1751322346655,600.0,0.0002,120]
[368718850,1751322347348,533.34,0.0002,120]
[368718851,1751322348916,600.0,0.0002,120]
[368718852,1751322349544,600.0,0.0002,120]
[368718853,1751322350596,600.0,0.0002,120]
[368718854,1751322351770,533.34,0.0002,120]
[368718855,1751322352715,600.0,0.0002,120]
[368718856,1751322353293,600.0,0.0002,120]
[368718857,1751322353989,600.0,0.0002,120]
[368718858,1751322355468,533.34,0.0002,120]
[368718870,1751322360229,600.0,0.0002,120]
[368718871,1751322361536,600.0,0.0002,120]
[368718872,1751322362175,600.0,0.0002,120]
[368718873,1751322362821,533.34,0.0002,120]
[368718874,1751322365529,600.0,0.00018233,120]
[368718875,1751322366025,600.0,0.00018233,120]
[368718876,1751322366772,600.0,0.00018233,120]
[368718877,1751322367638,533.34,0.00018233,120]
[368718878,1751322369091,600.0,0.00018233,120]
[368718879,1751322369727,600.0,0.00018233,120]
[368718880,1751322370959,600.0,0.00018233,120]
[368718881,1751322372392,533.34,0.00018233,120]
[368718882,1751322374104,600.0,0.00018233,120]
[368718883,1751322374655,600.0,0.00018233,120]
[368718884,1751322375269,600.0,0.00018233,120]
[368718885,1751322375898,533.34,0.00018233,120]
[368718886,1751322377843,600.0,0.00018233,120]
[368718887,1751322378539,600.0,0.00018233,120]
[368718888,1751322379285,600.0,0.00018233,120]
[368718889,1751322379909,533.49428782,0.00018233,120]
[368718892,1751322433267,589.0,0.0002739,120]
[368718893,1751322435733,498.0,0.0002739,120]
[368718954,1751322598685,501.0,0.00012632,2]
[368718981,1751322632776,-300.0,0.00013183,2]
[368718983,1751322632787,-300.0,0.00013184,2]
[368718985,1751322632796,-250.0,0.00013186,2]
[368718987,1751322632807,-805.25745126,0.00013213,2]
[368718989,1751322632820,-300.0,0.00013366,2]
[368718991,1751322632830,-17.08640287,0.00013367,2]
[368718994,1751322632842,-282.91359713,0.00013367,2]
[368718996,1751322632852,-1200.0,0.00013367,2]
[368718998,1751322632861,-300.0,0.00013367,2]
[368718999,1751322632870,-207.4,0.00013368,2]
[368719000,1751322632880,-6912.642,0.00013368,2]
[368719001,1751322632890,-23900.0,0.00013376,2]
[368719002,1751322632899,-3387.25292027,0.00013423,2]
[368719003,1751322632910,-2500.0,0.0001348,2]
[368719004,1751322632919,-2500.0,0.0001348,2]
[368719005,1751322632928,-835.8297818,0.00013697,2]
[368719006,1751322632937,-150.0,0.00013698,2]
[368719007,1751322632946,-2605.26,0.00013699,2]
[368719008,1751322632955,-437.59,0.00013699,2]
[368719009,1751322632965,-2500.0,0.00013795,2]
[368719010,1751322632974,-500.0,0.00013887,2]
[368719011,1751322632983,-500.0,0.00013888,2]
[368719012,1751322632992,-639.0,0.00013889,2]
[368719013,1751322633002,-2009.0,0.00013889,2]
[368719014,1751322633012,-804.0,0.00013889,2]
[368719015,1751322633021,-1285.156,0.00013889,2]
[368719016,1751322633031,-560.0,0.00013889,2]
[368719017,1751322633040,-930.0,0.00013889,2]
[368719018,1751322633050,-592.0,0.00013889,2]
[368719019,1751322633059,-1679.0,0.00013889,2]
[368719020,1751322633068,-1163.0,0.00013889,2]
[368719021,1751322633078,-948.0,0.00013889,2]
[368719022,1751322633087,-4105.0,0.00013889,2]
[368719023,1751322633096,-248.8,0.00013889,2]
[368719024,1751322633106,-300.0,0.00013889,2]
[368719025,1751322633116,-151.0,0.00013889,2]
[368719026,1751322633125,-693.3919763,0.00013889,2]
[368719027,1751322633134,-500.0,0.00013889,2]
[368719028,1751322633144,-500.0,0.00013889,2]
[368719029,1751322633154,-500.0,0.00013889,2]
[368719030,1751322633164,-500.0,0.00013889,2]
[368719031,1751322633174,-500.0,0.00013889,2]
[368719032,1751322633183,-500.0,0.00013889,2]
[368719033,1751322633193,-500.0,0.00013889,2]
[368719034,1751322633202,-500.0,0.00013889,2]
[368719035,1751322633212,-500.0,0.00013889,2]
[368719036,1751322633221,-500.0,0.00013889,2]
[368719037,1751322633231,-500.0,0.00013889,2]
[368719038,1751322633241,-500.0,0.00013889,2]
[368719039,1751322633251,-211.01846175,0.00013889,2]
[368719040,1751322633263,-1000.0,0.00013889,2]
[368719041,1751322633274,-1000.0,0.00013889,2]
[368719042,1751322633286,-269.53355931,0.00013889,2]
[368719043,1751322633297,-500.0,0.00013889,2]
[368719044,1751322633308,-500.0,0.00013889,2]
[368719045,1751322633318,-500.0,0.00013889,2]
[368719046,1751322633330,-500.0,0.00013889,2]
[368719047,1751322633340,-500.0,0.00013889,2]
[368719048,1751322633350,-154.789388,0.00013892,2]
[368719049,1751322633361,-157.485263,0.00013892,2]
[368719050,1751322633372,-472.145907,0.00013892,2]
[368719051,1751322633382,-1267.093799,0.00013892,2]
[368719052,1751322633393,-2077.646825,0.00013892,2]
[368719053,1751322633402,-1900.882479,0.00013892,2]
[368719054,1751322633413,-154.789388,0.00013893,2]
[368719055,1751322633423,-472.145907,0.00013893,2]
[368719056,1751322633432,-472.145907,0.00013893,2]
[368719057,1751322633442,-1267.093799,0.00013893,2]
[368719058,1751322633452,-1267.093799,0.00013893,2]
[368719059,1751322633462,-2077.646825,0.00013893,2]
[368719060,1751322633472,-2077.646825,0.00013893,2]
[368719061,1751322633482,-1900.882479,0.00013893,2]
[368719062,1751322633491,-1900.882479,0.00013893,2]
[368719063,1751322633501,-154.789388,0.00013894,2]
[368719064,1751322633513,-154.789388,0.00013894,2]
[368719065,1751322633523,-157.485263,0.00013894,2]
[368719066,1751322633533,-472.145907,0.00013894,2]
[368719067,1751322633543,-472.145907,0.00013894,2]
[368719068,1751322633552,-1267.093799,0.00013894,2]
[368719069,1751322633562,-1267.093799,0.00013894,2]
[368719070,1751322633572,-2077.646825,0.00013894,2]
[368719071,1751322633581,-2077.646825,0.00013894,2]
[368719072,1751322633591,-1900.882479,0.00013894,2]
[368719073,1751322633600,-1900.882479,0.00013894,2]
[368719074,1751322633609,-472.145907,0.00013895,2]
[368719075,1751322633620,-1267.093799,0.00013895,2]
[368719076,1751322633630,-2077.646825,0.00013895,2]
[368719077,1751322633639,-1900.882479,0.00013895,2]
[368719078,1751322633649,-154.789388,0.00013898,2]
[368719079,1751322633659,-157.485263,0.00013898,2]
[368719080,1751322633669,-472.145907,0.00013898,2]